{"text_format":"3","workbook":"xlsx","n_sheets":1,"sheets":["Шот-фактура үлгісі"],"not_rendered":{"images":1,"defined_names":5},"read":"whole","date_system":"1900"}

{"sheet":"Шот-фактура үлгісі","index":0,"n_rows":44,"n_cols":9,"rows_kept":44,"merged":[[0,1,0,2],[1,1,1,2],[2,1,2,2],[3,1,3,2],[4,1,4,2],[5,1,5,2],[6,1,6,2],[7,1,7,2],[8,1,8,2],[10,1,10,2],[11,1,11,2],[12,1,12,2],[13,1,13,2],[14,1,14,2],[15,1,15,2],[18,1,19,2],[20,1,20,2],[21,1,23,2],[24,1,24,2],[25,1,25,2],[26,1,26,2],[27,1,27,2],[34,1,34,2],[35,1,35,2],[36,1,36,2],[37,1,37,2],[41,1,41,5],[42,4,42,5],[42,6,42,7],[43,4,43,5],[43,6,43,7]]}
[null,"2013-06-02",null,null,"# шот-фактура",2211]
[]
[]
[null,"Шотты алушы:",null,null,"Үшін:"]
[null,"Жазира Ұшқынова",null,null,"Жоба не қызмет сипаттамасы"]
[null,"Нұрлан зерттеуі",null,null,"Тауар нөмірі","Сипаттамасы","Бағасы","Саны","Мөлшері"]
[null,"Жұбанұлы 456",null,null,"ABC-123","1-тауар",{"v":2.99,"d":"Т2.99"},{"v":15,"d":"15 "},{"$f":"tblInvoice[[#This Row],[Бағасы]]*tblInvoice[[#This Row],[Саны]]","v":{"v":44.85,"d":"Т44.85"}}]
[null,"Көкшетау, АО 12345",null,null,"ABC-134","2-тауар",{"v":4,"d":"4.00"},{"v":20,"d":"20 "},{"$f":"tblInvoice[[#This Row],[Бағасы]]*tblInvoice[[#This Row],[Саны]]","v":{"v":80,"d":"80.00"}}]
[null,"123-555-0987",{"$nulls":6},{"$f":"tblInvoice[[#This Row],[Бағасы]]*tblInvoice[[#This Row],[Саны]]","v":0}]
[{"$nulls":8},{"$f":"tblInvoice[[#This Row],[Бағасы]]*tblInvoice[[#This Row],[Саны]]","v":0}]
[null,"Жүк алушы:",{"$nulls":6},{"$f":"tblInvoice[[#This Row],[Бағасы]]*tblInvoice[[#This Row],[Саны]]","v":0}]
[null,"Жазира Ұшқынова",{"$nulls":6},{"$f":"tblInvoice[[#This Row],[Бағасы]]*tblInvoice[[#This Row],[Саны]]","v":0}]
[null,"Нұрлан зерттеуі",{"$nulls":6},{"$f":"tblInvoice[[#This Row],[Бағасы]]*tblInvoice[[#This Row],[Саны]]","v":0}]
[null,"Жұбанұлы 456",{"$nulls":6},{"$f":"tblInvoice[[#This Row],[Бағасы]]*tblInvoice[[#This Row],[Саны]]","v":0}]
[null,"Көкшетау, АО 12345",{"$nulls":6},{"$f":"tblInvoice[[#This Row],[Бағасы]]*tblInvoice[[#This Row],[Саны]]","v":0}]
[null,"123-555-0987",{"$nulls":6},{"$f":"tblInvoice[[#This Row],[Бағасы]]*tblInvoice[[#This Row],[Саны]]","v":0}]
[{"$nulls":8},{"$f":"tblInvoice[[#This Row],[Бағасы]]*tblInvoice[[#This Row],[Саны]]","v":0}]
[{"$nulls":8},{"$f":"tblInvoice[[#This Row],[Бағасы]]*tblInvoice[[#This Row],[Саны]]","v":0}]
[null,"Осыған төленетін барлық түбіртектерді жасау:",{"$nulls":6},{"$f":"tblInvoice[[#This Row],[Бағасы]]*tblInvoice[[#This Row],[Саны]]","v":0}]
[{"$nulls":8},{"$f":"tblInvoice[[#This Row],[Бағасы]]*tblInvoice[[#This Row],[Саны]]","v":0}]
[null,{"$f":"КомпанияАтауы","v":"Компания атауы"},{"$nulls":6},{"$f":"tblInvoice[[#This Row],[Бағасы]]*tblInvoice[[#This Row],[Саны]]","v":0}]
[null,"Осы шот-фактураға қатысты қандай да бір сұрағыңыз болса, хабарласыңыз:",{"$nulls":6},{"$f":"tblInvoice[[#This Row],[Бағасы]]*tblInvoice[[#This Row],[Саны]]","v":0}]
[{"$nulls":8},{"$f":"tblInvoice[[#This Row],[Бағасы]]*tblInvoice[[#This Row],[Саны]]","v":0}]
[{"$nulls":8},{"$f":"tblInvoice[[#This Row],[Бағасы]]*tblInvoice[[#This Row],[Саны]]","v":0}]
[null,"Марат Рүстемұлы",{"$nulls":6},{"$f":"tblInvoice[[#This Row],[Бағасы]]*tblInvoice[[#This Row],[Саны]]","v":0}]
[null,"123-555-0123",{"$nulls":6},{"$f":"tblInvoice[[#This Row],[Бағасы]]*tblInvoice[[#This Row],[Саны]]","v":0}]
[null,"Marat@fabrikam.com",{"$nulls":6},{"$f":"tblInvoice[[#This Row],[Бағасы]]*tblInvoice[[#This Row],[Саны]]","v":0}]
[{"$nulls":8},{"$f":"tblInvoice[[#This Row],[Бағасы]]*tblInvoice[[#This Row],[Саны]]","v":0}]
[{"$nulls":8},{"$f":"tblInvoice[[#This Row],[Бағасы]]*tblInvoice[[#This Row],[Саны]]","v":0}]
[{"$nulls":8},{"$f":"tblInvoice[[#This Row],[Бағасы]]*tblInvoice[[#This Row],[Саны]]","v":0}]
[{"$nulls":8},{"$f":"tblInvoice[[#This Row],[Бағасы]]*tblInvoice[[#This Row],[Саны]]","v":0}]
[{"$nulls":4},"Аралық жиын",{"$f":"\"Жалпы элементтер саны:  \"&SUBTOTAL(103,tblInvoice[Сипаттамасы])","v":"Жалпы элементтер саны:  2"},null,null,{"$f":"SUBTOTAL(109,tblInvoice[Мөлшері])","v":124.85}]
[]
[{"$nulls":4},"Айналым салығының мөлшерлемесі:",{"v":0.05,"d":"5.0%"},false,"Айналым салығы",{"$f":"IF(TaxExempt<>FALSE,0,tblInvoice[[#Totals],[Мөлшері]]*TaxRate)","v":{"v":6.2425,"d":"6.24"}}]
[{"$nulls":7},"Алынған депозиттен аз ",{"v":50,"d":"50.00"}]
[{"$nulls":7},"Шот-фактура қорытындысы",{"$f":"(tblInvoice[[#Totals],[Мөлшері]]+SalesTax)-Депозит","v":{"v":81.0925,"d":"Т81.09"}}]
[]
[{"$nulls":8},"Алғаннан кейінгі есеп"]
[{"$nulls":8},"Бизнесіңіз үшін рақмет!"]
[]
[]
[null,"Компания атауы"]
[null,"Тел","123-555-0190",null,"Абай көш. 789",null,"www.fabrikam.com"]
[null,"Факс","123-555-1919",null,"Балқаш, ҚО 12345",null,"John@fabrikam.com"]